fUSD/lending_fUSD_20240109
["ID","MTS","AMOUNT","RATE_DAILY","PERIOD"]
[310896629,1704805848900,-250.0,0.000345,4]
[310896630,1704805848910,-250.0,0.000345,4]
[310896631,1704805848920,-250.0,0.000345,4]
[310896632,1704805848930,-250.0,0.000345,4]
[310896633,1704805848941,-250.0,0.000345,4]
[310896634,1704805848951,-474.2,0.000345,4]
[310896635,1704805848962,-414.13942493,0.00034519,2]
[310896636,1704805848972,-6235.332963,0.0003452,2]
[310896637,1704805848982,-47349.392079,0.0003452,2]
[310896638,1704805848993,-1774.649886,0.0003452,2]
[310896639,1704805849003,-215.08,0.00034521,2]
[310896640,1704805849013,-180.0,0.00034658,2]
[310896641,1704805849024,-500.0,0.00034685,2]
[310896642,1704805849034,-224.99759924,0.000347,7]
[310896643,1704805849045,-153.84,0.00034703,2]
[310896644,1704805849055,-584.59,0.00034703,2]
[310896645,1704805849067,-159.85238378,0.00034725,7]
[310896646,1704805849079,-249.39610956,0.0003475,7]
[310896647,1704805849089,-397.39112993,0.00034778,7]
[310896648,1704805849100,-452.94171457,0.0003479,7]
[310896649,1704805849110,-328.765467,0.00034794,7]
[310896650,1704805849120,-328.765468,0.00034794,7]
[310896651,1704805849131,-9352.999445,0.00034794,2]
[310896652,1704805849141,-71024.088118,0.00034794,2]
[310896653,1704805849151,-2661.974829,0.00034794,2]
[310896654,1704805849161,-858.81269452,0.00034849,7]
[310896655,1704805849172,-400.00790759,0.00034861,7]
[310896656,1704805849182,-2095.29460654,0.00034873,7]
[310896657,1704805849193,-466.5,0.000349,2]
[310896658,1704805849203,-8942.98654321,0.000349,4]
[310896659,1704805849213,-3593.694556,0.000349,2]
[310896660,1704805849368,-1305.20107556,0.000349,2]
[310896661,1704805849380,-1002.09076715,0.000349,2]
[310896662,1704805849391,-8876.92688182,0.000349,2]
[310896663,1704805849401,-186.34491941,0.000349,2]
[310896664,1704805849410,-186.34491941,0.000349,2]
[310896665,1704805849420,-1379.02818341,0.000349,2]
[310896666,1704805849429,-1379.02818329,0.000349,2]
[310896667,1704805849439,-1379.02818329,0.000349,2]
[310896668,1704805849448,-1379.02818329,0.000349,2]
[310896669,1704805849461,-1379.02818329,0.000349,2]
[310896670,1704805849471,-1379.02818329,0.000349,2]
[310896671,1704805849480,-909.2141795,0.000349,2]
[310896672,1704805849500,-469.81400379,0.000349,2]
[310896673,1704805849510,-1379.02818329,0.000349,2]
[310896674,1704805849519,-307.40614885,0.0003491,7]
[310896675,1704805849529,-206.95830856,0.0003491,5]
[310896676,1704805849539,-12470.665927,0.00034931,2]
[310896677,1704805849549,-94698.784158,0.00034931,2]
[310896678,1704805849558,-3549.299772,0.00034931,2]
[310896679,1704805849567,-152.24,0.00034932,2]
[310896680,1704805849576,-266.97734896,0.00034934,7]
[310896681,1704805849587,-231.28237468,0.00034934,7]
[310896682,1704805849596,-643.56511893,0.00034934,7]
[310896683,1704805849605,-1484.35281166,0.0003499,8]
[310896684,1704805849614,-152.0,0.00034996,4]
[310896685,1704805849623,-165.01402374,0.00034997,2]
[310896686,1704805849632,-9428.89623687,0.00035,2]
[310896687,1704805849644,-3153.68209866,0.00035,2]
[310896688,1704805849656,-5797.6786689,0.00035,2]
[310896689,1704805849667,-751.17160109,0.00035,2]
[310896690,1704805849692,-2264.52000002,0.00035,2]
[310896691,1704805849703,-4527.12703154,0.00035,2]
[310896692,1704805849714,-258.90489317,0.00035,2]
[310896693,1704805849725,-2299.73832,0.00035,2]
[310896694,1704805849750,-71518.28114975,0.00035,2]
[310896695,1704805849759,-156.03129922,0.00035,4]
[310896696,1704805849769,-617.90544107,0.00035,4]
[310896697,1704805849778,-446.78845482,0.00035,4]
[310896698,1704805849787,-1000.0,0.00035,2]
[310896699,1704805849797,-11503.57758026,0.00035,7]
[310896700,1704805849807,-2000.0,0.00035,2]
[310896701,1704805849817,-1000.0,0.00035,6]
[310896702,1704805849826,-1005.0,0.00035,5]
[310896703,1704805849838,-155.33912068,0.00035,3]
[310896704,1704805849848,-702.29490981,0.00035,2]
[310896705,1704805849858,-1200.0,0.00035,20]
[310896706,1704805849867,-16462.58633023,0.00035,2]
[310896707,1704805849877,-5323.51441796,0.00035,5]
[310896708,1704805849886,-5000.0,0.00035,2]
[310896709,1704805849895,-400.0,0.00035,3]
[310896710,1704805849905,-385.67307271,0.00035,2]
[310896711,1704805849914,-1889.40550939,0.00035,14]
[310896712,1704805849924,-151.216,0.00035,7]
[310896713,1704805849933,-1200.0,0.00035,30]
[310896714,1704805849942,-1000.0,0.00035,30]
[310896715,1704805849952,-1000.0,0.00035,6]
[310896716,1704805849962,-125729.50381391,0.00035,4]
[310896717,1704805849972,-194.15574383,0.00035,4]
[310896718,1704805849981,-3000.0,0.00035,2]
[310896719,1704805849990,-1386.69464826,0.00035,2]
[310896720,1704805850010,-1386.69464826,0.00035,2]
[310896721,1704805850022,-1037.320079,0.00035,2]
[310896722,1704805850032,-1000.0,0.00035,3]
[310896723,1704805850043,-3000.0,0.0003501,2]
[310896724,1704805850053,-3000.0,0.0003502,2]
[310896725,1704805850063,-500.0,0.00035027,2]
[310896726,1704805850073,-3000.0,0.0003503,2]
[310896727,1704805850086,-5187.060013,0.0003504,2]
[310896728,1704805850096,-15588.332409,0.00035068,2]
[310896729,1704805850106,-118373.480198,0.00035068,2]
[310896730,1704805850117,-4436.624715,0.00035068,2]
[310896731,1704805850127,-42289.51777274,0.0003509,2]
[310896732,1704805850137,-1379.02818329,0.00035198,2]
[310896733,1704805850148,-470.68,0.00035334,2]
[310896734,1704805850158,-21823.665372,0.00035342,2]
[310896735,1704805850168,-165722.872277,0.00035342,2]
[310896736,1704805850178,-6211.274602,0.00035342,2]
[310896737,1704805850190,-500.0,0.0003537,2]
[310896738,1704805850200,-257.69,0.00035574,2]
[310896739,1704805850210,-750.0,0.000356,2]
[310896740,1704805850220,-150.0,0.00035616,2]
[310896741,1704805850230,-300.0,0.00035616,7]
[310896742,1704805850240,-374.88280177,0.00035616,12]
[310896743,1704805850250,-500.0,0.00035616,2]
[310896744,1704805850260,-358.8,0.00035616,2]
[310896745,1704805850270,-153.84,0.00035616,2]
[310896746,1704805850280,-173.26,0.000357,7]
[310896747,1704805850291,-500.0,0.00035712,7]
[310896748,1704805850301,-215.08,0.00035798,2]
[310896749,1704805850311,-14108.5737434,0.00035873,5]
[310896750,1704805850324,-756.50627482,0.00035973,8]
[310896751,1704805850335,-7574.8858751,0.00036,2]
[310896752,1704805850354,-18543.5588401,0.00036,2]
[310896753,1704805850367,-454.56000002,0.00036,2]
[310896754,1704805850380,-13696.81766204,0.00036,2]
[310896755,1704805850849,-324.24288594,0.00036,2]
[310896756,1704805850926,-59405.9347368,0.00036,2]
[310896757,1704805850936,-1000.0,0.00036,5]
[310896758,1704805850946,-15768.8168836,0.00036,4]
[310896759,1704805850956,-760.92227324,0.00036,4]
[310896760,1704805850966,-686.59431321,0.00036,4]
[310896761,1704805850975,-439.0921,0.00036,29]
[310896762,1704805850985,-1000.0,0.00036,6]
[310896763,1704805850995,-2600.0,0.00036,3]
[310896764,1704805851005,-1037.320079,0.00036,2]
[310896765,1704805851015,-500.0,0.00036055,7]
[310896766,1704805851024,-204.0,0.0003619,22]
[310896767,1704805851034,-337.57,0.000363,3]
[310896768,1704805851045,-337.57,0.000363,3]
[310896769,1704805851055,-337.57,0.000363,3]
[310896770,1704805851064,-337.57,0.000363,3]
[310896771,1704805851074,-337.57,0.000363,3]
[310896772,1704805851084,-337.57,0.000363,3]
[310896773,1704805851099,-337.57,0.000363,3]
[310896774,1704805851109,-337.57,0.000363,3]
[310896775,1704805851119,-337.57,0.000363,3]
[310896776,1704805851130,-337.57,0.000363,3]
[310896777,1704805851140,-337.57,0.000363,3]
[310896778,1704805851151,-337.57,0.000363,3]
[310896779,1704805851161,-337.57,0.000363,3]
[310896780,1704805851171,-337.57,0.000363,3]
[310896781,1704805851181,-337.57,0.000363,3]
[310896782,1704805851191,-337.57,0.000363,3]
[310896783,1704805851201,-337.57,0.000363,3]
[310896784,1704805851211,-337.57,0.000363,3]
[310896785,1704805851220,-337.57,0.000363,3]
[310896786,1704805851230,-337.57,0.000363,3]
[310896787,1704805851240,-500.0,0.00036397,7]
[310896788,1704805851250,-153.84,0.0003653,2]
[310896789,1704805851261,-8092.48100141,0.000366,7]
[310896790,1704805851271,-391.78,0.00036613,15]
[310896791,1704805851281,-500.0,0.0003674,7]
[310896792,1704805851292,-1379.02818329,0.00036777,2]
[310896793,1704805851302,-47654.7980678,0.00036781,7]
[310896794,1704805851312,-312.0,0.0003684,4]
[310896795,1704805851326,-716.00262135,0.0003685,4]
[310896796,1704805851338,-186.34491941,0.00036917,2]
[310896797,1704805851348,-14260.55356188,0.00036973,2]
[310896798,1704805851358,-6000.0,0.00036973,2]
[310896799,1704805851368,-13953.67386735,0.00036973,2]
[310896800,1704805851378,-339.90245428,0.00036973,2]
[310896801,1704805851388,-200.0,0.00036973,2]
[310896802,1704805851398,-503.2981976,0.00036973,2]
[310896803,1704805851408,-597.62092117,0.00036973,2]
[310896804,1704805851418,-204.9160981,0.00036973,2]
[310896805,1704805851428,-54668.99191454,0.00036973,2]
[310896806,1704805851441,-5186.5258121,0.00036973,2]
[310896807,1704805851453,-327.52,0.00036973,2]
[310896808,1704805852186,-531.0,0.00024366,2]
[310896809,1704805852195,-1451.42969647,0.00029399,2]
[310896810,1704805852205,-283.17969853,0.00029399,2]
[310896811,1704805852221,-99.24095894,0.00029399,2]
[310896812,1704805852231,-439.48830346,0.000294,2]
[310896813,1704805852240,-110.18709952,0.00036973,2]
[310896814,1704805852257,-1962.5576905,0.00031799,2]
[310896815,1704805852269,-652.33048324,0.00031799,2]
[310896816,1704805852278,-7357.01951676,0.00036973,2]
[310896817,1704805852290,-635.3205522,0.00036973,2]
[310896818,1704805852303,-365.29499343,0.00036973,2]
[310896819,1704805852316,-671.12238823,0.00036973,2]
[310896820,1704805852329,-1995.9726602,0.00036973,2]
[310896821,1704805852342,-47219.46647886,0.00036973,2]
[310896822,1704805852354,-3690.25965342,0.00036973,2]
[310896823,1704805852366,-1313.83754836,0.00036973,2]
[310896824,1704805852379,-1139.50000001,0.00036973,2]
[310896825,1704805853184,-428.147,0.00036973,2]
[310896826,1704805853196,-1138.2,0.00036973,2]
[310896827,1704805853209,-2782.414635,0.00036973,2]
[310896830,1704805984202,205.0,0.00021962,2]
[310896831,1704806359880,221.68,0.00020986,2]
[310896832,1704806757932,2000.0,0.00022201,2]
[310896833,1704806801619,222.75,0.00020263,2]
[310896834,1704806847292,1000.0,0.00022045,2]
[310896841,1704806958075,158.19,0.00022366,2]
[310896896,1704807031937,-155.0,0.00022513,2]
[310896898,1704807031947,-160.35626993,0.00022514,2]
[310896900,1704807031957,-418.76500977,0.00022515,2]
[310896902,1704807031966,-150.0,0.00022516,2]
[310896906,1704807031975,-1364.50653469,0.00022516,2]
[310896910,1704807031985,-2315.6309702,0.00022516,2]
[310896912,1704807031994,-155.0,0.00022517,2]
[310896914,1704807032004,-2775.44187928,0.00022517,2]
[310896915,1704807032014,-1706.15282945,0.00022518,2]
[310896916,1704807032023,-300.0,0.00022518,2]
[310896917,1704807032032,-150.0,0.00022518,2]
[310896918,1704807032042,-222.75,0.00022527,2]
[310896919,1704807032051,-168.9714364,0.00022578,2]
[310896920,1704807032060,-936.42507023,0.00022578,2]
[310896921,1704807032072,-543.29728188,0.00022578,2]
[310896922,1704807032084,-265.44622218,0.00022578,2]
[310896923,1704807032095,-748.76317259,0.00022578,2]
[310896924,1704807032164,-45.04825312,0.00022578,2]
[310896925,1704807032174,-223.81083167,0.00022578,2]
[310896926,1704807032184,-499.99,0.00022578,2]
[310896927,1704807032193,-223.81083167,0.00022674,2]
[310896928,1704807032203,-223.81083167,0.00022674,2]
[310896929,1704807032213,-920.9362698,0.000227,2]
[310896930,1704807032223,-9066.4,0.00022787,2]
[310896931,1704807032232,-490.80408754,0.00022795,2]
[310896932,1704807032245,-10704.4806,0.00022797,2]
[310896933,1704807032254,-481.09,0.00022797,2]
[310896934,1704807032264,-1024.54,0.00022798,2]
[310896935,1704807032273,-1024.13887096,0.00022799,2]
[310896936,1704807032282,-58594.6139,0.000228,2]
[310896937,1704807032292,-426.11,0.00022877,2]
[310896938,1704807032302,-5730.93909145,0.00022887,2]
[310896939,1704807032311,-1760.94594392,0.00022895,2]
[310896940,1704807032321,-318.10964854,0.00022897,2]
[310896941,1704807032331,-67982.63474965,0.00022897,2]
[310896942,1704807032343,-13303.9030925,0.00022897,2]
[310896943,1704807032353,-155.52034948,0.00022898,2]
[310896944,1704807032362,-513.69778937,0.00022898,2]
[310896945,1704807032372,-810.69019365,0.00022898,2]
[310896946,1704807032382,-214.17861932,0.00022898,2]
[310896947,1704807032391,-18870.89389379,0.00022898,2]
[310896948,1704807032401,-360.0278767,0.00022898,2]
[310896949,1704807032411,-199.40938153,0.00022898,2]
[310896950,1704807032421,-157.15051088,0.00022898,2]
[310896951,1704807032431,-155.0,0.00022898,2]
[310896952,1704807032440,-522.07104133,0.00022898,2]
[310896953,1704807032450,-200.73115419,0.00022899,2]
[310896954,1704807032460,-184.22579518,0.00022899,2]
[310896955,1704807032470,-155.17020376,0.00022899,2]
[310896956,1704807032479,-336.69086329,0.00022899,2]
[310896957,1704807032491,-272.38351934,0.00022899,2]
[310896958,1704807032501,-1308.18613366,0.00022899,2]
[310896959,1704807032510,-258.63869852,0.00022899,2]
[310896960,1704807032520,-198.85792776,0.00022899,2]
[310896961,1704807032530,-156.4406449,0.00022899,2]
[310896962,1704807032539,-244.85610876,0.00022899,2]
[310896963,1704807032549,-5242.32156854,0.00022899,2]
[310896964,1704807032563,-155.0,0.00022899,2]
[310896965,1704807032572,-270.62291569,0.00022899,2]
[310896966,1704807032582,-162.18908574,0.00022899,2]
[310896967,1704807032592,-195.24808762,0.00022899,2]
[310896968,1704807032602,-430.12467534,0.00022899,2]
[310896969,1704807032612,-245.54211778,0.00022899,2]
[310896970,1704807032622,-1070.38310566,0.00022899,2]
[310896971,1704807032632,-159.11782189,0.00022899,2]
[310896972,1704807032642,-217.32566192,0.00022899,2]
[310896973,1704807032653,-20365.24493856,0.00022899,2]
[310896974,1704807032663,-215.21165486,0.00022899,2]
[310896975,1704807032673,-343.36644218,0.00022899,2]
[310896976,1704807032682,-251.79727683,0.00022899,2]
[310896977,1704807032692,-226.52861327,0.00022899,2]
[310896978,1704807032702,-207.83148372,0.00022899,2]
[310896979,1704807032712,-156.07247531,0.00022899,2]
[310896980,1704807032722,-843.00113502,0.00022899,2]
[310896981,1704807032731,-1141.28374699,0.00022899,2]
[310896982,1704807032744,-4555.69748637,0.00022899,2]
[310896983,1704807032753,-1851.98145614,0.00022899,2]
[310896984,1704807032763,-372.3247722,0.00022899,2]
[310896985,1704807032774,-258.83583849,0.00022899,2]
[310896986,1704807032783,-260.19540139,0.00022899,2]
[310896987,1704807032795,-36694.97737827,0.000229,2]
[310896988,1704807032804,-504.43,0.00022924,2]
[310896989,1704807032814,-158.19,0.00023735,2]
[310896990,1704807032823,-182.56,0.00023855,2]
[310896991,1704807032832,-201.64324579,0.00024,2]
[310896992,1704807032846,-9474.82,0.00024174,2]
[310896993,1704807032856,-374.62137616,0.00024297,2]
[310896994,1704807032866,-8071.0,0.00024397,2]
[310896995,1704807032876,-5244.477,0.00024397,2]
[310896996,1704807032886,-420.0,0.00024456,2]
[310896997,1704807032896,-153.26,0.00024645,2]
[310896998,1704807032906,-250.0,0.00024658,2]
[310896999,1704807032917,-222.75,0.00024791,2]
[310897000,1704807032926,-1000.0,0.00024801,2]
[310897001,1704807032936,-168.97143636,0.0002495,2]
[310897002,1704807032946,-279.06437772,0.00025,2]
[310897003,1704807032957,-167.05182833,0.00025,2]
[310897004,1704807032968,-1016.69878254,0.00025,2]
[310897005,1704807032978,-302.84681763,0.00025,2]
[310897006,1704807032990,-150.0,0.00025,2]
[310897007,1704807033001,-350.0,0.00025,3]
[310897008,1704807033010,-235.52493722,0.00025,2]
[310897009,1704807033020,-158.19,0.00025105,2]
[310897010,1704807033030,-171.9,0.00025159,2]
[310897011,1704807033040,-155.86,0.00025506,2]
[310897012,1704807033050,-504.43,0.00025789,2]
[310897013,1704807033060,-150.0,0.00026079,2]
[310897014,1704807033070,-490.80408753,0.00026348,2]
[310897015,1704807033080,-158.19,0.00026475,2]
[310897016,1704807033090,-400.0,0.00027,3]
[310897017,1704807033100,-222.75,0.00027054,2]
[310897018,1704807033113,-168.97143636,0.00027322,2]
[310897019,1704807033123,-162.76,0.00027397,2]
[310897020,1704807033134,-500.0,0.00027397,2]
[310897021,1704807033143,-250.0,0.00027397,2]
[310897022,1704807033154,-755.79126643,0.000274,2]
[310897023,1704807033163,-672.78215871,0.000275,4]
[310897024,1704807033173,-1000.0,0.00027557,2]
[310897025,1704807033183,-158.19,0.00027845,2]
[310897026,1704807033194,-959.17,0.00027945,2]
[310897027,1704807033203,-5592.8,0.00027945,2]
[310897028,1704807033213,-687.34310039,0.00028,2]
[310897029,1704807033222,-12274.41017462,0.00028,2]
[310897030,1704807033232,-500.0,0.00028655,2]
[310897031,1704807033244,-500.0,0.00028655,2]
[310897032,1704807033253,-500.0,0.00028655,2]
[310897033,1704807033262,-504.43,0.00028655,2]
[310897034,1704807033272,-162.76,0.00028822,2]
[310897035,1704807033282,-450.0,0.00029,3]
[310897036,1704807033292,-158.19,0.00029215,2]
[310897037,1704807033302,-222.75,0.00029318,2]
[310897038,1704807033311,-168.98176525,0.000294,2]
[310897039,1704807033321,-168.98176525,0.000294,2]
[310897040,1704807033330,-168.98176525,0.000294,2]
[310897041,1704807033340,-168.98176525,0.000294,2]
[310897042,1704807033350,-168.98176525,0.000294,2]
[310897043,1704807033359,-168.98176525,0.000294,2]
[310897044,1704807033369,-168.98176525,0.000294,2]
[310897045,1704807033379,-153.26,0.00029574,2]
[310897046,1704807033389,-155.25679626,0.0002958,2]
[310897047,1704807033399,-168.97143636,0.00029695,2]
[310897048,1704807033409,-200.0,0.00029747,3]
[310897049,1704807033418,-800.0,0.00029747,5]
[310897050,1704807033428,-200.0,0.00029747,3]
[310897051,1704807033440,-195.89150417,0.000298,2]
[310897052,1704807033450,-490.80408753,0.000299,2]
[310897053,1704807033459,-168.98176525,0.00029904,2]
[310897054,1704807033469,-462.46293269,0.0003,4]
[310897055,1704807033479,-2299.89957228,0.0003,4]
[310897056,1704807034181,-16685.61911748,0.0003,4]
[310897057,1704807034190,-4514.6049027,0.0003,4]
[310897058,1704807034202,-709.57283364,0.0003,4]
[310897059,1704807034213,-529.60007921,0.0003,4]
[310897060,1704807034242,-642.5144948,0.0003,4]
[310897063,1704807034254,-556.53,0.0003,4]
[310897065,1704807034267,-1550.3468,0.0003,4]
[310897067,1704807034278,-1278.82160055,0.0003,4]
[310897070,1704807034290,-4421.58569895,0.0003,4]
[310897074,1704807034324,-13036.87231476,0.0003,4]
[310897076,1704807034337,-529.8845438,0.0003,4]
[310897079,1704807034349,-1896.35385827,0.0003,4]
[310897099,1704807038043,-205.0,0.00023189,2]
[310897100,1704807038053,-205.0,0.0002779,9]
[310897101,1704807038062,-12076.19151756,0.0003,4]
[310897102,1704807038072,-591.51968689,0.0003,2]
[310897103,1704807038091,-98.87268217,0.0003,2]
[310897104,1704807038100,-155.0,0.0003,2]
[310897105,1704807038109,-84.51231783,0.0003,4]
[310897106,1704807038149,-6761.57225261,0.0003,4]
[310897107,1704807038158,-489.74225021,0.000301,4]
[310897108,1704807038168,-154.42,0.00030137,2]
[310897109,1704807038177,-1248.48,0.00030137,2]
[310897110,1704807038186,-1000.0,0.00030312,2]
[310897111,1704807038195,-535.07621834,0.00030526,2]
[310897112,1704807038204,-158.19,0.00030585,2]
[310897113,1704807038213,-168.98176525,0.00030694,2]
[310897114,1704807038223,-500.0,0.00031,3]
[310897115,1704807038232,-2582.20400533,0.0003148,4]
[310897116,1704807038241,-280.70420003,0.0003148,4]
[310897117,1704807038251,-168.98176525,0.00031483,2]
[310897118,1704807038261,-292.29,0.00031507,2]
[310897119,1704807038270,-504.43,0.0003152,2]
[310897120,1704807038279,-222.75,0.00031582,2]
[310897121,1704807038289,-302.96537039,0.00031637,4]
[310897122,1704807038298,-1412.7018,0.00031698,2]
[310897123,1704807038307,-326.6572,0.00031698,2]
[310897124,1704807038316,-633.72,0.000317,2]
[310897125,1704807038325,-5590.39,0.000317,2]
[310897126,1704807038334,-154.42,0.00031703,2]
[310897127,1704807038344,-203.59336652,0.00031796,4]
[310897128,1704807038355,-242.44654232,0.00031797,4]
[310897129,1704807038365,-252.64960992,0.00031797,4]
[310897130,1704807038375,-183.42615502,0.00031797,4]
[310897131,1704807038385,-1547.94934701,0.00031797,4]
[310897132,1704807038395,-203.97224556,0.00031797,4]
[310897133,1704807038405,-155.0,0.00031797,2]
[310897134,1704807038416,-155.48666202,0.00031798,4]
[310897135,1704807038425,-155.48282513,0.00031798,4]
[310897136,1704807038435,-283.77089221,0.00031798,4]
[310897137,1704807038445,-3456.14665753,0.00031798,4]
[310897138,1704807038455,-155.206512,0.00031798,4]
[310897139,1704807038464,-2253.39355263,0.00031798,4]
[310897140,1704807038477,-42073.97569553,0.00031798,4]
[310897141,1704807038489,-431.95013453,0.00031798,4]
[310897142,1704807038502,-47815.97751313,0.00031798,4]
[310897143,1704807038514,-51697.70139706,0.00031798,4]
[310897144,1704807038526,-61393.54003653,0.00031798,4]
[310897145,1704807038536,-779.83,0.00031799,2]
[310897146,1704807038546,-779.83,0.00031799,2]
[310897147,1704807038556,-779.83,0.00031799,2]
[310897148,1704807038569,-138360.03365745,0.000318,2]
[310897149,1704807038582,-21540.01533055,0.000318,2]
[310897150,1704807038593,-152.61104083,0.000318,4]
[310897151,1704807038604,-152.61104081,0.0003185,4]
[310897152,1704807038614,-870.42609953,0.000319,3]
[310897153,1704807038625,-152.61104081,0.000319,4]
[310897154,1704807038637,-158.19,0.00031955,2]
[310897155,1704807038647,-165.01402375,0.00031997,2]
[310897156,1704807038658,-583.45819627,0.00031998,2]
[310897157,1704807038668,-200.59511573,0.00031999,4]
[310897158,1704807038678,-521.24113653,0.00031999,4]
[310897159,1704807038688,-611.64837796,0.00031999,4]
[310897160,1704807038698,-155.77441161,0.00031999,4]
[310897161,1704807038709,-1000.0,0.00031999,2]
[310897162,1704807038719,-1082.08553947,0.00031999,2]
[310897163,1704807038729,-389.0,0.00032,5]
[310897164,1704807038739,-779.49947602,0.00032,4]
[310897165,1704807038750,-13043.44055628,0.00032,4]
[310897166,1704807038760,-218672.48675711,0.00032,2]
[310897167,1704807038773,-67274.57592913,0.00032,2]
[310897168,1704807038788,-35129.71482022,0.00032,2]
[310897170,1704807038808,-367367.55475168,0.00032,2]
[310897172,1704807038818,-231.29997455,0.00032,2]
[310897174,1704807038827,-231.29997455,0.00032,2]
[310897176,1704807038836,-231.29997455,0.00032,2]
[310897178,1704807038846,-231.29997455,0.00032,2]
[310897180,1704807038855,-231.29997455,0.00032,2]
[310897181,1704807038864,-231.29997455,0.00032,2]
[310897183,1704807038874,-231.29997455,0.00032,2]
[310897185,1704807038884,-231.29997455,0.00032,2]
[310897186,1704807038895,-231.29997455,0.00032,2]
[310897187,1704807038905,-231.29997455,0.00032,2]
[310897188,1704807038914,-231.29997455,0.00032,2]
[310897190,1704807038923,-231.29997455,0.00032,2]
[310897192,1704807038933,-231.29997455,0.00032,2]
[310897194,1704807038942,-231.29997455,0.00032,2]
[310897196,1704807038953,-231.29997455,0.00032,2]
[310897198,1704807038962,-231.29997455,0.00032,2]
[310897200,1704807038971,-231.29997455,0.00032,2]
[310897202,1704807038981,-231.29997455,0.00032,2]
[310897204,1704807038994,-231.29997455,0.00032,2]
[310897207,1704807039004,-231.29997455,0.00032,2]
[310897210,1704807039013,-168.97143636,0.00032067,2]
[310897212,1704807039023,-150.36366081,0.00032119,2]
[310897215,1704807039032,-778.20985444,0.00032219,3]
[310897218,1704807039041,-168.98176525,0.00032273,2]
[310897221,1704807039050,-205.0,0.00032392,16]
[310897223,1704807039059,-593.32083771,0.00032736,4]
[310897225,1704807039068,-352.12020968,0.00032867,2]
[310897227,1704807039078,-509.88413292,0.00032867,4]
[310897229,1704807039087,-200.0,0.00032867,2]
[310897231,1704807039096,-367.59,0.00032877,15]
[310897233,1704807039105,-152.74,0.00032877,2]
[310897235,1704807039114,-870.42609945,0.00032973,5]
[310897237,1704807039123,-550.0,0.00033,3]
[310897239,1704807039132,-168.98176525,0.00033063,2]
[310897241,1704807039141,-1000.0,0.00033068,2]
[310897243,1704807039151,-154.42,0.00033268,2]
[310897245,1704807039160,-158.19,0.00033324,2]
[310897247,1704807039170,-219.56,0.000335,2]
[310897248,1704807039179,-219.56,0.000335,2]
[310897249,1704807039188,-219.56,0.000335,2]
[310897250,1704807039196,-219.56,0.000335,2]
[310897251,1704807039205,-219.56,0.000335,2]
[310897252,1704807039214,-219.56,0.000335,2]
[310897253,1704807039223,-219.56,0.000335,2]
[310897254,1704807039233,-219.56,0.000335,2]
[310897255,1704807039242,-219.56,0.000335,2]
[310897256,1704807039251,-219.56,0.000335,2]
[310897257,1704807039260,-219.56,0.000335,2]
[310897258,1704807039269,-219.56,0.000335,2]
[310897259,1704807039278,-219.56,0.000335,2]
[310897260,1704807039288,-219.56,0.000335,2]
[310897261,1704807039297,-219.56,0.000335,2]
[310897262,1704807039306,-219.56,0.000335,2]
[310897263,1704807039315,-219.56,0.000335,2]
[310897264,1704807039324,-219.56,0.000335,2]
[310897266,1704807039334,-219.56,0.000335,2]
[310897268,1704807039343,-219.56,0.000335,2]
[310897270,1704807039352,-222.75,0.00033846,2]
[310897271,1704807039361,-168.98176525,0.00033852,2]
[310897272,1704807039370,-1000.0,0.00034,4]
[310897273,1704807039379,-870.42609945,0.00034045,6]
[310897274,1704807039388,-208.15413721,0.00034353,7]
[310897275,1704807039397,-504.43,0.00034386,2]